[Event "*** Titled Tuesday Blitz"]
[Site "Chess.com"]
[Date "2020.04.14"]
[Round "7"]
[White "AliKa2810"]
[Black "yudinetz"]
[Result "0-1"]
[WhiteElo "2598"]
[BlackElo "2447"]
[TimeControl "180+1"]
[EndTime "11:14:23 PDT"]
[Termination "yudinetz won by resignation"]

1. d4 {[%clk 0:03:00.9]} 1... Nf6 {[%clk 0:03:00.9]} 2. c4 {[%clk 0:03:00]} 2...
e6 {[%clk 0:03:01]} 3. Nf3 {[%clk 0:03:00.3]} 3... b6 {[%clk 0:03:01.1]} 4. a3
{[%clk 0:02:59.3]} 4... Bb7 {[%clk 0:03:00.8]} 5. Nc3 {[%clk 0:02:59.7]} 5...
Ne4 {[%clk 0:03:01.1]} 6. Nxe4 {[%clk 0:02:58.8]} 6... Bxe4 {[%clk 0:03:02]} 7.
Bf4 {[%clk 0:02:59.3]} 7... Be7 {[%clk 0:02:56.2]} 8. e3 {[%clk 0:02:59.6]} 8...
d6 {[%clk 0:02:50.3]} 9. Bd3 {[%clk 0:02:59.9]} 9... Bxd3 {[%clk 0:02:50.5]} 10.
Qxd3 {[%clk 0:02:59.6]} 10... Nd7 {[%clk 0:02:51]} 11. O-O {[%clk 0:02:59.6]}
11... O-O {[%clk 0:02:48.7]} 12. e4 {[%clk 0:02:59.6]} 12... c6 {[%clk
0:02:32.2]} 13. Rfe1 {[%clk 0:02:43.7]} 13... Re8 {[%clk 0:02:17.4]} 14. h4
{[%clk 0:02:36.9]} 14... h6 {[%clk 0:02:15.2]} 15. h5 {[%clk 0:02:36.5]} 15...
Nf6 {[%clk 0:02:11]} 16. e5 {[%clk 0:02:22.8]} 16... Nxh5 {[%clk 0:02:03.7]} 17.
Bh2 {[%clk 0:02:22.7]} 17... dxe5 {[%clk 0:02:02.7]} 18. Nxe5 {[%clk 0:02:22.5]}
18... Rc8 {[%clk 0:01:56.8]} 19. Nxf7 {[%clk 0:02:17.3]} 19... Kxf7 {[%clk
0:01:53.8]} 20. Qh3 {[%clk 0:02:13.1]} 20... Nf6 {[%clk 0:01:53]} 21. Qxe6+
{[%clk 0:02:12.7]} 21... Kf8 {[%clk 0:01:53.4]} 22. Rad1 {[%clk 0:01:47]} 22...
Bxa3 {[%clk 0:01:31.2]} 23. Qf5 {[%clk 0:01:46.6]} 23... Rxe1+ {[%clk 0:01:28]}
24. Rxe1 {[%clk 0:01:46.2]} 24... Bxb2 {[%clk 0:01:21.8]} 25. Re6 {[%clk
0:01:35.6]} 25... Qxd4 {[%clk 0:01:12.8]} 26. Rd6 {[%clk 0:01:26.8]} 26... Re8
{[%clk 0:01:01.4]} 27. Bf4 {[%clk 0:01:05.2]} 27... Qe4 {[%clk 0:00:53.5]} 28.
Qxe4 {[%clk 0:01:05.1]} 28... Rxe4 {[%clk 0:00:51.5]} 29. Be3 {[%clk 0:01:04]}
29... Rxc4 {[%clk 0:00:51]} 30. Rd8+ {[%clk 0:01:04.4]} 30... Kf7 {[%clk
0:00:50.3]} 31. Ra8 {[%clk 0:01:05]} 31... Nd5 {[%clk 0:00:27.1]} 32. Rxa7+
{[%clk 0:01:04.5]} 32... Ke6 {[%clk 0:00:27.5]} 33. Rb7 {[%clk 0:00:55.8]} 33...
b5 {[%clk 0:00:24.7]} 34. Ba7 {[%clk 0:00:53.5]} 34... b4 {[%clk 0:00:23.9]} 35.
f3 {[%clk 0:00:52.7]} 35... Bd4+ {[%clk 0:00:23.2]} 36. Bxd4 {[%clk 0:00:52.1]}
36... Rxd4 {[%clk 0:00:24.1]} 37. Kf2 {[%clk 0:00:52.6]} 37... Rd2+ {[%clk
0:00:24.5]} 38. Kg3 {[%clk 0:00:52.1]} 38... Rb2 {[%clk 0:00:20.2]} 39. Rxg7
{[%clk 0:00:51.7]} 39... b3 {[%clk 0:00:20.4]} 40. Rg6+ {[%clk 0:00:51.9]} 40...
Kd7 {[%clk 0:00:20]} 41. Rxh6 {[%clk 0:00:52.1]} 41... Rb1 {[%clk 0:00:19.9]}
42. Rh7+ {[%clk 0:00:52.3]} 42... Kd6 {[%clk 0:00:19.5]} 43. Rb7 {[%clk
0:00:52.3]} 43... b2 {[%clk 0:00:20]} 44. f4 {[%clk 0:00:50.8]} 44... Kc5 {[%clk
0:00:19.4]} 45. f5 {[%clk 0:00:43.8]} 45... Nb6 {[%clk 0:00:19.5]} 46. f6 {[%clk
0:00:28.5]} 46... Rf1 {[%clk 0:00:19.1]} 47. f7 {[%clk 0:00:27.4]} 47... b1=Q
{[%clk 0:00:18.4]} 48. Re7 {[%clk 0:00:25.6]} 48... Qg6+ {[%clk 0:00:17.6]} 49.
Kh2 {[%clk 0:00:25.2]} 49... Qh5+ {[%clk 0:00:17.6]} 50. Kg3 {[%clk 0:00:24.8]}
50... Qg5+ {[%clk 0:00:17.6]} 51. Kh2 {[%clk 0:00:25]} 0-1

[Event "*** Titled Tuesday Blitz"]
[Site "Chess.com"]
[Date "2020.04.14"]
[Round "7"]
[White "TV27"]
[Black "Barbus89"]
[Result "1-0"]
[WhiteElo "2091"]
[BlackElo "2300"]
[TimeControl "180+1"]
[EndTime "11:14:23 PDT"]
[Termination "TV27 won on time"]

1. c4 {[%clk 0:03:00.9]} 1... Nf6 {[%clk 0:02:58.6]} 2. Nc3 {[%clk 0:02:58.3]}
2... d5 {[%clk 0:02:56.7]} 3. cxd5 {[%clk 0:02:57.5]} 3... Nxd5 {[%clk
0:02:56.7]} 4. g3 {[%clk 0:02:56.7]} 4... g6 {[%clk 0:02:54.2]} 5. Bg2 {[%clk
0:02:56.4]} 5... Nxc3 {[%clk 0:02:52.4]} 6. bxc3 {[%clk 0:02:55.4]} 6... Bg7
{[%clk 0:02:51.9]} 7. Nf3 {[%clk 0:02:54.6]} 7... O-O {[%clk 0:02:51.4]} 8. O-O
{[%clk 0:02:53.6]} 8... c5 {[%clk 0:02:50.9]} 9. Rb1 {[%clk 0:02:52.4]} 9... Nc6
{[%clk 0:02:49.2]} 10. c4 {[%clk 0:02:44.7]} 10... Qa5 {[%clk 0:02:35.4]} 11.
Qb3 {[%clk 0:02:34]} 11... Bg4 {[%clk 0:01:56]} 12. Bb2 {[%clk 0:02:32.5]} 12...
Bxb2 {[%clk 0:01:35.3]} 13. Qxb2 {[%clk 0:02:27.3]} 13... Bxf3 {[%clk
0:01:29.4]} 14. Bxf3 {[%clk 0:02:25.6]} 14... Nd4 {[%clk 0:01:29.1]} 15. Kg2
{[%clk 0:02:11.8]} 15... Nxf3 {[%clk 0:01:10.3]} 16. Kxf3 {[%clk 0:02:06.6]}
16... b6 {[%clk 0:01:00.2]} 17. Kg2 {[%clk 0:02:03.4]} 17... Rfd8 {[%clk
0:00:56]} 18. d3 {[%clk 0:02:02.5]} 18... Rd6 {[%clk 0:00:51.8]} 19. f4 {[%clk
0:02:01.4]} 19... Rad8 {[%clk 0:00:51.5]} 20. f5 {[%clk 0:02:00.8]} 20... Qa4
{[%clk 0:00:46.4]} 21. Rf3 {[%clk 0:01:50.4]} 21... Qc6 {[%clk 0:00:43.7]} 22.
Rf1 {[%clk 0:01:45.9]} 22... gxf5 {[%clk 0:00:30.9]} 23. Kg1 {[%clk 0:01:23.9]}
23... e6 {[%clk 0:00:26.9]} 24. Qf6 {[%clk 0:01:20]} 24... Rd4 {[%clk
0:00:20.7]} 25. Qg5+ {[%clk 0:01:17.8]} 25... Kf8 {[%clk 0:00:20.6]} 26. Qh6+
{[%clk 0:01:16.4]} 26... Ke7 {[%clk 0:00:19.2]} 27. Rxf5 {[%clk 0:01:10.1]}
27... Rf8 {[%clk 0:00:12]} 28. Qg5+ {[%clk 0:01:03.7]} 28... Ke8 {[%clk
0:00:10.5]} 29. R5f3 {[%clk 0:01:00]} 29... Qd7 {[%clk 0:00:09.8]} 30. Qh6
{[%clk 0:00:57.4]} 30... f5 {[%clk 0:00:09.6]} 31. Re3 {[%clk 0:00:53]} 31...
Qf7 {[%clk 0:00:06]} 32. Rxe6+ {[%clk 0:00:51.2]} 32... Kd7 {[%clk 0:00:05.9]}
33. Re5 {[%clk 0:00:40.4]} 33... f4 {[%clk 0:00:05.3]} 34. Qh3+ {[%clk
0:00:37.5]} 34... Kc7 {[%clk 0:00:04.4]} 35. gxf4 {[%clk 0:00:34.9]} 35... Rg8+
{[%clk 0:00:03.5]} 36. Kh1 {[%clk 0:00:32.5]} 36... Qg7 {[%clk 0:00:03]} 37. Qg3
{[%clk 0:00:27.3]} 37... Qxg3 {[%clk 0:00:01.6]} 38. hxg3 {[%clk 0:00:26.5]}
38... Rxg3 {[%clk 0:00:02.5]} 39. Re7+ {[%clk 0:00:25]} 39... Rd7 {[%clk
0:00:01.7]} 40. Rxd7+ {[%clk 0:00:23.9]} 40... Kxd7 {[%clk 0:00:02.6]} 41. Rg1
{[%clk 0:00:21.2]} 1-0

[Event "*** Titled Tuesday Blitz"]
[Site "Chess.com"]
[Date "2020.04.14"]
[Round "7"]
[White "Tesla37"]
[Black "lachesisQ"]
[Result "0-1"]
[WhiteElo "2890"]
[BlackElo "3093"]
[TimeControl "180+1"]
[EndTime "11:14:24 PDT"]
[Termination "lachesisQ won by resignation"]

1. e4 {[%clk 0:03:00.9]} 1... c5 {[%clk 0:02:58.6]} 2. Nf3 {[%clk 0:03:00.9]}
2... d6 {[%clk 0:02:59.5]} 3. Nc3 {[%clk 0:03:00.3]} 3... a6 {[%clk 0:02:59.3]}
4. d4 {[%clk 0:02:59.8]} 4... cxd4 {[%clk 0:03:00.2]} 5. Nxd4 {[%clk 0:03:00]}
5... Nf6 {[%clk 0:03:00.4]} 6. g3 {[%clk 0:02:59.4]} 6... e5 {[%clk 0:03:00.2]}
7. Nde2 {[%clk 0:02:58.6]} 7... Be7 {[%clk 0:02:58.4]} 8. Bg2 {[%clk 0:02:57.8]}
8... b5 {[%clk 0:02:58.9]} 9. O-O {[%clk 0:02:57]} 9... O-O {[%clk 0:02:57.9]}
10. h3 {[%clk 0:02:56.5]} 10... Nbd7 {[%clk 0:02:51]} 11. g4 {[%clk 0:02:53.8]}
11... b4 {[%clk 0:02:49.5]} 12. Nd5 {[%clk 0:02:47.4]} 12... Nxd5 {[%clk
0:02:49.2]} 13. exd5 {[%clk 0:02:47.3]} 13... a5 {[%clk 0:02:38]} 14. Ng3 {[%clk
0:02:46.2]} 14... Nc5 {[%clk 0:02:33.8]} 15. Be3 {[%clk 0:02:41.1]} 15... Qc7
{[%clk 0:02:33.3]} 16. a3 {[%clk 0:02:31.8]} 16... Bd7 {[%clk 0:02:25.4]} 17.
axb4 {[%clk 0:02:19.7]} 17... axb4 {[%clk 0:02:26.3]} 18. Qd2 {[%clk 0:02:19.9]}
18... b3 {[%clk 0:02:13.6]} 19. c4 {[%clk 0:02:15.4]} 19... Rfc8 {[%clk
0:01:57.5]} 20. Rfc1 {[%clk 0:01:54.4]} 20... Bf8 {[%clk 0:01:55]} 21. Qc3
{[%clk 0:01:35.5]} 21... Na4 {[%clk 0:01:42.7]} 22. Qd2 {[%clk 0:01:34.6]} 22...
Nc5 {[%clk 0:01:38.4]} 23. Qc3 {[%clk 0:01:34]} 23... Rxa1 {[%clk 0:01:29.8]}
24. Rxa1 {[%clk 0:01:33.5]} 24... Na4 {[%clk 0:01:30.2]} 25. Qxb3 {[%clk
0:01:28.1]} 25... Rb8 {[%clk 0:01:30.4]} 26. Qa3 {[%clk 0:01:11.3]} 26... Nxb2
{[%clk 0:01:15.6]} 27. Rc1 {[%clk 0:01:08.2]} 27... Nxc4 {[%clk 0:01:00.5]} 28.
Qa2 {[%clk 0:00:59.5]} 28... Rb4 {[%clk 0:00:59.5]} 29. Bf1 {[%clk 0:00:59.6]}
29... Bb5 {[%clk 0:00:59.3]} 30. Bd2 {[%clk 0:00:59.8]} 30... Ra4 {[%clk
0:00:54.5]} 31. Qb3 {[%clk 0:00:50.2]} 31... Nxd2 {[%clk 0:00:54.6]} 32. Rxc7
{[%clk 0:00:49.8]} 32... Nxb3 {[%clk 0:00:54.4]} 33. Bxb5 {[%clk 0:00:50.3]}
33... Rf4 {[%clk 0:00:43.4]} 34. Be8 {[%clk 0:00:42.1]} 34... g6 {[%clk
0:00:34]} 35. Ne2 {[%clk 0:00:39.6]} 35... Rf6 {[%clk 0:00:30.1]} 36. Ng3 {[%clk
0:00:29.1]} 36... Nd4 {[%clk 0:00:23.6]} 37. Kg2 {[%clk 0:00:25.6]} 37... Rf4
{[%clk 0:00:23.4]} 38. Nf1 {[%clk 0:00:18.5]} 38... Bh6 {[%clk 0:00:19.5]} 39.
Nd2 {[%clk 0:00:16.2]} 39... Bg5 {[%clk 0:00:19.5]} 40. Nc4 {[%clk 0:00:15.9]}
40... Bh4 {[%clk 0:00:19.8]} 41. Nxd6 {[%clk 0:00:13.1]} 41... Rxf2+ {[%clk
0:00:20]} 42. Kh1 {[%clk 0:00:12.5]} 42... Nf3 {[%clk 0:00:18.8]} 43. Bxf7+
{[%clk 0:00:12.7]} 43... Kf8 {[%clk 0:00:16.4]} 0-1

[Event "*** Titled Tuesday Blitz"]
[Site "Chess.com"]
[Date "2020.04.14"]
[Round "7"]
[White "VALPARAISO37"]
[Black "amiralfio"]
[Result "1-0"]
[WhiteElo "2379"]
[BlackElo "2526"]
[TimeControl "180+1"]
[EndTime "11:14:24 PDT"]
[Termination "VALPARAISO37 won by resignation"]

1. d4 {[%clk 0:03:00.9]} 1... Nf6 {[%clk 0:02:51.8]} 2. c4 {[%clk 0:03:00.3]}
2... e6 {[%clk 0:02:51.6]} 3. Nc3 {[%clk 0:03:00]} 3... Bb4 {[%clk 0:02:49]} 4.
a3 {[%clk 0:03:00.6]} 4... Bxc3+ {[%clk 0:02:48.9]} 5. bxc3 {[%clk 0:03:00.9]}
5... b6 {[%clk 0:02:49.5]} 6. e3 {[%clk 0:03:00.9]} 6... Bb7 {[%clk 0:02:49.9]}
7. f3 {[%clk 0:02:59.7]} 7... d6 {[%clk 0:02:50.3]} 8. Bd3 {[%clk 0:02:59.9]}
8... c5 {[%clk 0:02:48.9]} 9. e4 {[%clk 0:02:59.4]} 9... e5 {[%clk 0:02:49]} 10.
Ne2 {[%clk 0:02:58.7]} 10... Nc6 {[%clk 0:02:47]} 11. Bg5 {[%clk 0:02:50.4]}
11... h6 {[%clk 0:02:45.3]} 12. Be3 {[%clk 0:02:49.3]} 12... Qd7 {[%clk
0:02:37.5]} 13. a4 {[%clk 0:02:47.3]} 13... Na5 {[%clk 0:02:35.9]} 14. Ng3
{[%clk 0:02:46.1]} 14... g6 {[%clk 0:02:34.6]} 15. O-O {[%clk 0:02:44.9]} 15...
Ba6 {[%clk 0:02:33.9]} 16. Qe2 {[%clk 0:02:44]} 16... h5 {[%clk 0:02:14.7]} 17.
d5 {[%clk 0:02:31.1]} 17... h4 {[%clk 0:02:10.7]} 18. Nh1 {[%clk 0:02:30.5]}
18... O-O-O {[%clk 0:02:02.2]} 19. Nf2 {[%clk 0:02:29.2]} 19... Nh5 {[%clk
0:01:56]} 20. Nh3 {[%clk 0:02:28.2]} 20... f6 {[%clk 0:01:51.8]} 21. Ra3 {[%clk
0:02:26.2]} 21... Kc7 {[%clk 0:01:51]} 22. f4 {[%clk 0:02:13.1]} 22... Rdf8
{[%clk 0:01:24.5]} 23. Kh1 {[%clk 0:01:49]} 23... Bc8 {[%clk 0:01:12.6]} 24.
fxe5 {[%clk 0:01:36.3]} 24... fxe5 {[%clk 0:01:09.6]} 25. Ng5 {[%clk 0:01:29.7]}
25... Qe7 {[%clk 0:00:51.9]} 26. Raa1 {[%clk 0:01:19.1]} 26... Nf4 {[%clk
0:00:27.9]} 27. Bxf4 {[%clk 0:01:17.6]} 27... exf4 {[%clk 0:00:24.1]} 28. Nf3
{[%clk 0:00:53.6]} 28... h3 {[%clk 0:00:22.7]} 29. Rg1 {[%clk 0:00:50.6]} 29...
hxg2+ {[%clk 0:00:13.2]} 30. Rxg2 {[%clk 0:00:48.1]} 30... Rh6 {[%clk 0:00:08]}
31. e5 {[%clk 0:00:47.6]} 31... dxe5 {[%clk 0:00:06.5]} 32. Rxg6 {[%clk
0:00:27.1]} 32... Rxg6 {[%clk 0:00:05.5]} 33. Bxg6 {[%clk 0:00:26.8]} 33... Kd6
{[%clk 0:00:04.1]} 34. Nd2 {[%clk 0:00:25.1]} 34... Bf5 {[%clk 0:00:02.2]} 35.
Ne4+ {[%clk 0:00:24.6]} 35... Kd7 {[%clk 0:00:02.4]} 36. Bxf5+ {[%clk
0:00:24.3]} 36... Rxf5 {[%clk 0:00:03.3]} 37. Qg4 {[%clk 0:00:23.9]} 37... Qf7
{[%clk 0:00:02.7]} 38. Ng3 {[%clk 0:00:19.7]} 38... fxg3 {[%clk 0:00:02.2]} 39.
Rf1 {[%clk 0:00:19.7]} 39... g2+ {[%clk 0:00:02.7]} 40. Kxg2 {[%clk 0:00:19.3]}
40... Kd6 {[%clk 0:00:02.6]} 41. Rxf5 {[%clk 0:00:18.7]} 41... Qe7 {[%clk
0:00:03.1]} 42. Qg6+ {[%clk 0:00:18.1]} 42... Kc7 {[%clk 0:00:03]} 43. Rf7
{[%clk 0:00:18.3]} 1-0

[Event "*** Titled Tuesday Blitz"]
[Site "Chess.com"]
[Date "2020.04.14"]
[Round "7"]
[White "picturesquecheck"]
[Black "UmutErdemGunduz"]
[Result "0-1"]
[WhiteElo "2210"]
[BlackElo "2366"]
[TimeControl "180+1"]
[EndTime "11:14:24 PDT"]
[Termination "UmutErdemGunduz won by resignation"]

1. e4 {[%clk 0:03:00.9]} 1... e5 {[%clk 0:02:59.4]} 2. Nf3 {[%clk 0:02:59.4]}
2... Nc6 {[%clk 0:02:59.3]} 3. Bb5 {[%clk 0:02:46.1]} 3... a6 {[%clk 0:02:59]}
4. Ba4 {[%clk 0:02:45.8]} 4... Nf6 {[%clk 0:02:59.1]} 5. O-O {[%clk 0:02:45.5]}
5... Be7 {[%clk 0:02:59.6]} 6. Re1 {[%clk 0:02:45.2]} 6... b5 {[%clk 0:03:00.3]}
7. Bb3 {[%clk 0:02:45.4]} 7... O-O {[%clk 0:03:01.2]} 8. h3 {[%clk 0:02:45.3]}
8... Bb7 {[%clk 0:02:59.4]} 9. a4 {[%clk 0:02:44.7]} 9... d5 {[%clk 0:02:58.7]}
10. exd5 {[%clk 0:02:42.3]} 10... Nxd5 {[%clk 0:02:59.6]} 11. axb5 {[%clk
0:02:41.6]} 11... axb5 {[%clk 0:02:56.5]} 12. Rxa8 {[%clk 0:02:41.2]} 12... Bxa8
{[%clk 0:02:57.4]} 13. Nxe5 {[%clk 0:02:41.2]} 13... Nxe5 {[%clk 0:02:43.3]} 14.
Rxe5 {[%clk 0:02:42.1]} 14... Nf4 {[%clk 0:02:43.2]} 15. f3 {[%clk 0:02:40.8]}
15... Bd6 {[%clk 0:01:16.5]} 16. Rxb5 {[%clk 0:02:21.5]} 16... Qh4 {[%clk
0:01:07.5]} 17. d4 {[%clk 0:01:10.7]} 17... Nxh3+ {[%clk 0:01:02.9]} 18. gxh3
{[%clk 0:01:04.3]} 18... Qg3+ {[%clk 0:01:00.2]} 19. Kf1 {[%clk 0:00:59.2]}
19... Qxh3+ {[%clk 0:00:56]} 20. Kf2 {[%clk 0:00:45.7]} 20... Re8 {[%clk
0:00:39.8]} 21. Be3 {[%clk 0:00:18.8]} 21... Qh2+ {[%clk 0:00:17.7]} 22. Kf1
{[%clk 0:00:18.6]} 22... Bc6 {[%clk 0:00:13.6]} 23. Rf5 {[%clk 0:00:15]} 23...
Qh3+ {[%clk 0:00:12.8]} 24. Kf2 {[%clk 0:00:13.5]} 24... Qxf5 {[%clk 0:00:13.7]}
25. Qd3 {[%clk 0:00:13.7]} 25... Qh3 {[%clk 0:00:08.5]} 26. Nd2 {[%clk
0:00:12.3]} 26... Qh2+ {[%clk 0:00:08.5]} 27. Ke1 {[%clk 0:00:12.2]} 27... Bg3+
{[%clk 0:00:05.4]} 28. Kd1 {[%clk 0:00:11.9]} 28... Qg1+ {[%clk 0:00:05.5]} 29.
Nf1 {[%clk 0:00:11.8]} 29... Bxf3+ {[%clk 0:00:04.5]} 30. Kd2 {[%clk 0:00:11.6]}
30... Qg2+ {[%clk 0:00:04.8]} 31. Kc3 {[%clk 0:00:10.9]} 31... Be2 {[%clk
0:00:04.9]} 32. Qf5 {[%clk 0:00:08.9]} 32... Qxf1 {[%clk 0:00:05.1]} 33. Bxf7+
{[%clk 0:00:08.4]} 33... Kf8 {[%clk 0:00:05.6]} 34. Qxf1 {[%clk 0:00:09.1]}
34... Bxf1 {[%clk 0:00:05.5]} 35. Bxe8 {[%clk 0:00:10]} 35... Kxe8 {[%clk
0:00:06]} 36. Kd2 {[%clk 0:00:10.5]} 36... h5 {[%clk 0:00:05.5]} 37. b3 {[%clk
0:00:11.3]} 37... h4 {[%clk 0:00:05.9]} 38. Bg5 {[%clk 0:00:11.3]} 38... h3
{[%clk 0:00:06]} 39. c4 {[%clk 0:00:10.8]} 39... h2 {[%clk 0:00:06.4]} 0-1

[Event "*** Titled Tuesday Blitz"]
[Site "Chess.com"]
[Date "2020.04.14"]
[Round "7"]
[White "Fighter008"]
[Black "theblitzchamp"]
[Result "1-0"]
[WhiteElo "2545"]
[BlackElo "2666"]
[TimeControl "180+1"]
[EndTime "11:14:25 PDT"]
[Termination "Fighter008 won by resignation"]

1. e4 {[%clk 0:03:00.9]} 1... e5 {[%clk 0:02:59.8]} 2. Nf3 {[%clk 0:03:00.2]}
2... Nc6 {[%clk 0:03:00.2]} 3. Nc3 {[%clk 0:03:00.1]} 3... Nf6 {[%clk
0:03:00.6]} 4. Bb5 {[%clk 0:02:59.8]} 4... d6 {[%clk 0:02:55.1]} 5. d4 {[%clk
0:02:58.5]} 5... exd4 {[%clk 0:02:56]} 6. Nxd4 {[%clk 0:02:58.4]} 6... Bd7
{[%clk 0:02:56.6]} 7. Bg5 {[%clk 0:02:53.1]} 7... Be7 {[%clk 0:02:55]} 8. Qd2
{[%clk 0:02:42.8]} 8... Nxd4 {[%clk 0:02:52.6]} 9. Qxd4 {[%clk 0:02:40.5]} 9...
Bxb5 {[%clk 0:02:47.2]} 10. Nxb5 {[%clk 0:02:41.4]} 10... Qd7 {[%clk 0:02:47.7]}
11. Nc3 {[%clk 0:02:39.4]} 11... Qg4 {[%clk 0:02:37.8]} 12. Be3 {[%clk
0:02:36.5]} 12... O-O {[%clk 0:02:15.7]} 13. O-O {[%clk 0:02:30.2]} 13... Rfe8
{[%clk 0:02:09.2]} 14. h3 {[%clk 0:02:28.2]} 14... Qh5 {[%clk 0:01:37.9]} 15. f4
{[%clk 0:02:19.9]} 15... a6 {[%clk 0:01:29.3]} 16. a4 {[%clk 0:02:18]} 16...
Rac8 {[%clk 0:01:19.7]} 17. Rae1 {[%clk 0:02:15.7]} 17... Nd7 {[%clk 0:01:16.9]}
18. Nd5 {[%clk 0:02:13]} 18... Nc5 {[%clk 0:00:52.7]} 19. Bc1 {[%clk 0:02:00.2]}
19... Bh4 {[%clk 0:00:48.2]} 20. Re3 {[%clk 0:01:55.5]} 20... c6 {[%clk
0:00:37.6]} 21. Nb6 {[%clk 0:01:54.7]} 21... Rcd8 {[%clk 0:00:37.7]} 22. b4
{[%clk 0:01:43.2]} 22... Ne6 {[%clk 0:00:21.6]} 23. Qd3 {[%clk 0:01:41.5]} 23...
Bf6 {[%clk 0:00:20.6]} 24. c3 {[%clk 0:01:37.8]} 24... a5 {[%clk 0:00:20.9]} 25.
Kh1 {[%clk 0:01:24.8]} 25... axb4 {[%clk 0:00:20.4]} 26. cxb4 {[%clk 0:01:24.1]}
26... Bd4 {[%clk 0:00:20.8]} 27. a5 {[%clk 0:01:21.2]} 27... Bxe3 {[%clk
0:00:20.8]} 28. Bxe3 {[%clk 0:01:21.1]} 28... Nc7 {[%clk 0:00:21.1]} 29. Bd4
{[%clk 0:01:18.1]} 29... Ne6 {[%clk 0:00:20.5]} 30. Bb2 {[%clk 0:01:17.6]} 30...
Qh6 {[%clk 0:00:19.2]} 31. Qg3 {[%clk 0:01:16.6]} 31... f6 {[%clk 0:00:19]} 32.
Nc4 {[%clk 0:01:08.4]} 32... d5 {[%clk 0:00:18.4]} 33. exd5 {[%clk 0:01:05.6]}
33... Rxd5 {[%clk 0:00:18.7]} 34. f5 {[%clk 0:01:04.2]} 34... Nd4 {[%clk
0:00:17.4]} 35. Nd6 {[%clk 0:01:00.9]} 35... Rd8 {[%clk 0:00:14.8]} 36. Nxb7
{[%clk 0:00:59.4]} 36... Nxf5 {[%clk 0:00:13.8]} 37. Rxf5 {[%clk 0:00:55.1]}
37... Rd1+ {[%clk 0:00:09.5]} 38. Kh2 {[%clk 0:00:54.5]} 38... R8d2 {[%clk
0:00:09.9]} 39. Bxf6 {[%clk 0:00:48.2]} 39... Rd3 {[%clk 0:00:07.5]} 40. Qb8+
{[%clk 0:00:46]} 40... Kf7 {[%clk 0:00:04.3]} 41. Bg5+ {[%clk 0:00:45.9]} 41...
Kg6 {[%clk 0:00:04.9]} 42. Bxh6 {[%clk 0:00:43.5]} 42... Kxf5 {[%clk 0:00:05.8]}
43. Qf4+ {[%clk 0:00:41.2]} 43... Ke6 {[%clk 0:00:04.9]} 44. Nc5+ {[%clk
0:00:41.2]} 44... Kd5 {[%clk 0:00:05.4]} 45. Nxd3 {[%clk 0:00:41.3]} 45... gxh6
{[%clk 0:00:06.3]} 46. Nf2 {[%clk 0:00:38.7]} 46... Rd4 {[%clk 0:00:06.3]} 47.
Qxd4+ {[%clk 0:00:37.1]} 47... Kxd4 {[%clk 0:00:07.2]} 1-0

[Event "*** Titled Tuesday Blitz"]
[Site "Chess.com"]
[Date "2020.04.14"]
[Round "7"]
[White "Harsha_Bharathakoti"]
[Black "FelixJoseYnojosa"]
[Result "1-0"]
[WhiteElo "2809"]
[BlackElo "2641"]
[TimeControl "180+1"]
[EndTime "11:14:26 PDT"]
[Termination "Harsha_Bharathakoti won by resignation"]

1. d4 {[%clk 0:02:46.5]} 1... Nf6 {[%clk 0:02:59.7]} 2. c4 {[%clk 0:02:42.4]}
2... e6 {[%clk 0:02:59.5]} 3. Nf3 {[%clk 0:02:42.2]} 3... d5 {[%clk 0:02:59.7]}
4. Nc3 {[%clk 0:02:42.7]} 4... c6 {[%clk 0:02:59.6]} 5. e3 {[%clk 0:02:42.5]}
5... Bd6 {[%clk 0:02:59.6]} 6. Qc2 {[%clk 0:02:42.7]} 6... O-O {[%clk
0:02:59.6]} 7. Be2 {[%clk 0:02:43.4]} 7... dxc4 {[%clk 0:02:59.7]} 8. Bxc4
{[%clk 0:02:44.3]} 8... b5 {[%clk 0:03:00.2]} 9. Be2 {[%clk 0:02:44.7]} 9... a6
{[%clk 0:03:00.8]} 10. e4 {[%clk 0:02:42]} 10... Be7 {[%clk 0:02:54.3]} 11. O-O
{[%clk 0:02:35]} 11... Bb7 {[%clk 0:02:54.3]} 12. e5 {[%clk 0:02:26.6]} 12...
Nd5 {[%clk 0:02:53.9]} 13. Nxd5 {[%clk 0:02:20.8]} 13... Qxd5 {[%clk 0:02:52.6]}
14. Bd3 {[%clk 0:02:21]} 14... h6 {[%clk 0:02:47.4]} 15. Be4 {[%clk 0:02:21.2]}
15... Qd7 {[%clk 0:02:45.8]} 16. Be3 {[%clk 0:02:16.7]} 16... a5 {[%clk
0:02:44.3]} 17. Rac1 {[%clk 0:01:54.1]} 17... a4 {[%clk 0:02:41.1]} 18. a3
{[%clk 0:01:51.6]} 18... Rc8 {[%clk 0:02:34.2]} 19. Ne1 {[%clk 0:01:40.7]} 19...
Na6 {[%clk 0:02:21.8]} 20. Nd3 {[%clk 0:01:40.8]} 20... b4 {[%clk 0:02:19]} 21.
axb4 {[%clk 0:01:20.6]} 21... Nxb4 {[%clk 0:02:19.1]} 22. Nxb4 {[%clk
0:01:20.2]} 22... Bxb4 {[%clk 0:02:19.9]} 23. Rfd1 {[%clk 0:01:07.4]} 23... Qe7
{[%clk 0:02:07.8]} 24. Ra1 {[%clk 0:01:01.8]} 24... a3 {[%clk 0:01:30.6]} 25.
bxa3 {[%clk 0:01:02.7]} 25... Rxa3 {[%clk 0:01:30.2]} 26. Rab1 {[%clk
0:01:03.2]} 26... Ba6 {[%clk 0:01:21.8]} 27. Rdc1 {[%clk 0:00:43.8]} 27... Rc3
{[%clk 0:01:11.9]} 28. Qd1 {[%clk 0:00:43.9]} 28... Rxc1 {[%clk 0:00:41]} 29.
Rxc1 {[%clk 0:00:44.8]} 29... Bb5 {[%clk 0:00:25]} 30. Qg4 {[%clk 0:00:38.5]}
30... Kf8 {[%clk 0:00:21.7]} 31. Bh7 {[%clk 0:00:20.1]} 31... Qd7 {[%clk
0:00:11.7]} 32. d5 {[%clk 0:00:20.4]} 32... Ba3 {[%clk 0:00:09.3]} 33. Bxh6
{[%clk 0:00:15.5]} 33... gxh6 {[%clk 0:00:08.5]} 34. Qg8+ {[%clk 0:00:15.5]}
34... Ke7 {[%clk 0:00:09.1]} 35. d6+ {[%clk 0:00:16.2]} 35... Bxd6 {[%clk
0:00:09.4]} 36. exd6+ {[%clk 0:00:17.1]} 36... Kf6 {[%clk 0:00:07.9]} 37. Qg3
{[%clk 0:00:16.2]} 37... e5 {[%clk 0:00:07.2]} 38. Qh4+ {[%clk 0:00:15]} 38...
Ke6 {[%clk 0:00:06.9]} 39. Bf5+ {[%clk 0:00:15.3]} 39... Kxf5 {[%clk 0:00:06.9]}
40. Qh3+ {[%clk 0:00:16]} 1-0